Cogmind - Beta 15 @@@ ROGUE MODE // 2025.06.17 @ 10:24:52 Player: CL-1C0 Result: Destroyed by Tracker with Linked Autogun Performance ------------- Evolutions (8) 4000 Regions Visited (18) 3600 Robots Destroyed (58) 290 Value Destroyed (4288) 4288 Prototype IDs (30) 600 Alien Tech Used (6) 1200 Bonus (10610) 10610 TOTAL SCORE: 24588 Bonus ------- Pacifist 3010 Entered DSFs 500 Registered with UFD 300 Met Zhirov 300 Found Hidden Lab 3000 Used Core Reset Matrix 3000 Pursued by Intercept 500 Cogmind --------- Core Integrity 0/1450 Matter 288/300 Energy 400/400 System Corruption 4% Temperature Cool (0) Movement Treading (135) Location -2/Section 7 Parts ------- > --- POWER (2) -------- Micro Antimatter Reactor Improved Quantum Reactor > --- PROPULSION (7) --- Experimental Biometal Heavy Treads Experimental Biometal Heavy Treads Experimental Biometal Heavy Treads Centrium Leg > --- UTILITY (11) ----- Experimental Cooling System Experimental Cooling System Experimental Optical Array Graphene Brace Experimental Focal Shield Spacefold Activator Microwarp Drive > --- WEAPON (3) ------- (None) > --- INVENTORY (5) ---- Advanced Sensor Array Dimensional Node Initializer Core Expander Terrabomb Terrabomb Peak State ------------ > --- POWER ------------ Micro Antimatter Reactor Improved Quantum Reactor > --- PROPULSION ------- Experimental Biometal Heavy Treads Experimental Biometal Heavy Treads Experimental Biometal Heavy Treads Centrium Leg > --- UTILITY ---------- Experimental Cooling System Experimental Cooling System Experimental Optical Array Medium Regenerative Plating Graphene Brace Experimental Focal Shield Advanced Hacking Suite Spacefold Activator Microwarp Drive > --- WEAPON ----------- (None) > --- INVENTORY -------- Advanced Sensor Array Dimensional Node Initializer Transdimensional Reconstructor Core Expander [Rating: 200] Favorites ----------- Power Quantum Reactor Power Core Light Nuclear Core Reactor Quantum Reactor Propulsion Experimental Biometal Heavy Treads Treads Experimental Biometal Heavy Treads Leg Centrium Leg Wheel Compact Wheel Flight Unit Nuclear Pulse Array Utility Medium Regenerative Plating Device Experimental Heat Sink Storage Improved Matter Compressor Processor Advanced Target Analyzer Hackware Advanced Hacking Suite Protection Medium Regenerative Plating Artifact Spacefold Activator Weapon Warp Cannon Energy Gun Heavy Tesla Rifle Energy Cannon Warp Cannon Ballistic Cannon Hardcell Cannon Launcher Gamma Bomb Array Special Weapon LU-1G1's Laser Shovel Slashing Weapon Power Sword Build | -11 -10 -10 -10 -7 -7 -5 -5 -4 -4 -4 -4 -3 -3 -3 -3 -2 -2 -2 ------- Run | Yrd Mat Min Sub Rec Scr Fac DSF Fac Upp Upp Zhi Pro Res Arm Lab Res Tes Sec Slots Evolved 16 | . . . . . . 10 . 2 . . . . 2 . . 2 . . Power 1 | . . . . . . . . . . . . . 1 . . . . . Propulsion 5 | . . . . . . 3 . 1 . . . . 1 . . . . . Utility 9 | . . . . . . 7 . 1 . . . . . . . 1 . . Weapon 1 | . . . . . . . . . . . . . . . . 1 . . Parts Attached 105 | . 2 . 1 1 6 3 1 2 . . 2 3 3 24 10 20 10 17 Power 11 | . . . . . 1 . . . . . 1 . . 2 1 2 2 2 Engine . | . . . . . . . . . . . . . . . . . . . Core 1 | . . . . . 1 . . . . . . . . . . . . . Reactor 10 | . . . . . . . . . . . 1 . . 2 1 2 2 2 Propulsion 30 | . 2 . 1 . 3 . 1 1 . . . . . 11 . 4 3 4 Treads 9 | . 2 . . . . . . . . . . . . 2 . 1 1 3 Leg 11 | . . . . . . . . . . . . . . 8 . . 2 1 Wheel 4 | . . . 1 . . . . . . . . . . . . 3 . . Hover . | . . . . . . . . . . . . . . . . . . . Flight 6 | . . . . . 3 . 1 1 . . . . . 1 . . . . Utility 51 | . . . . . . 3 . 1 . . 1 3 3 7 7 12 4 10 Device 26 | . . . . . . 2 . . . . . 2 2 3 3 5 2 7 Storage 1 | . . . . . . . . . . . . . . . . . 1 . Processor 11 | . . . . . . 1 . 1 . . . 1 . 1 . 6 . 1 Hackware 5 | . . . . . . . . . . . . . 1 . 2 1 1 . Protection 6 | . . . . . . . . . . . 1 . . 3 2 . . . Artifact 2 | . . . . . . . . . . . . . . . . . . 2 Weapon 13 | . . . . 1 2 . . . . . . . . 4 2 2 1 1 Energy Gun 1 | . . . . . . . . . . . . . . . 1 . . . Energy Cannon 4 | . . . . . 1 . . . . . . . . 1 1 1 . . Ballistic Gun . | . . . . . . . . . . . . . . . . . . . Ballistic Cannon 2 | . . . . . . . . . . . . . . 1 . . . 1 Launcher 1 | . . . . . . . . . . . . . . . . 1 . . Special Weapon 2 | . . . . 1 1 . . . . . . . . . . . . . Impact Weapon . | . . . . . . . . . . . . . . . . . . . Slashing Weapon 3 | . . . . . . . . . . . . . . 2 . . 1 . Piercing Weapon . | . . . . . . . . . . . . . . . . . . . Special Melee Weapon . | . . . . . . . . . . . . . . . . . . . Unidentified Prototypes 26 | . . . . . 1 . . . . . 2 . 1 2 9 2 4 5 Parts Lost 29 | . . . 1 . 1 . 3 . 1 . . . 1 1 2 2 11 6 Power 4 | . . . . . . . . . 1 . . . . . . . 3 . Propulsion 5 | . . . 1 . . . 1 . . . . . . . . . 3 . Utility 15 | . . . . . . . 2 . . . . . 1 1 2 1 4 4 Weapon 5 | . . . . . 1 . . . . . . . . . . 1 1 2 Highest Loss Streak 5 | . . . 1 . 1 . 3 . 1 . . . 1 1 2 1 5 2 To Critical Strikes . | . . . . . . . . . . . . . . . . . . . Average Backups 3 | . 1 . . 1 2 1 . . . 1 1 4 4 4 4 4 4 3 Power . | . . . . . . . . . . . . . . . . . . . Propulsion . | . . . . . . . . . . . . . . . . . . . Utility . | . . . . . 1 1 . . . . . 1 1 . . . . . Weapon . | . . . . 1 . . . . . . . . . . . . . . Tool/Special . | . . . . . . . . . . . . . . . . . . . Unused Backups 17 | . 10 . . . 1 . . . . . . . . 2 . . 1 3 Power 2 | . 2 . . . . . . . . . . . . . . . . . Propulsion 6 | . 4 . . . . . . . . . . . . . . . 1 1 Utility 2 | . 1 . . . . . . . . . . . . 1 . . . . Weapon 5 | . 3 . . . 1 . . . . . . . . 1 . . . . Tool/Special 2 | . . . . . . . . . . . . . . . . . . 2 Average Slot Usage (%) 65 | . 23 28 26 34 51 38 46 40 34 33 39 59 66 78 75 87 72 77 Reactor 5 | . . . . . . . . . . . 1 5 4 7 9 8 7 7 Treads 9 | . 23 28 21 14 4 . . . . . . . . . 9 9 9 12 Leg 3 | . . . . . . . . . . . . . . 15 9 2 2 4 Wheel 2 | . . . 4 14 4 . . . . . . . . . . 6 3 . Flight 4 | . . . . . 17 14 20 21 21 21 21 21 19 6 . . . . Device 12 | . . . . . . 5 9 5 5 5 5 12 17 18 18 18 12 20 Processor 5 | . . . . . . 5 3 4 5 5 5 8 9 6 3 6 8 9 Hackware 5 | . . . . . . . . . . . . . 3 4 5 12 12 5 Protection 4 | . . . . . . . . . . . 1 5 4 7 8 7 7 4 Energy Cannon 3 | . . . . . . . . . . . . . . . 4 7 4 3 Special Weapon 2 | . . . . 6 14 5 5 4 . 2 5 5 4 1 . . . 2 Slashing Weapon 1 | . . . . . . . . . . . . . . 4 3 3 . . Peak Build Rating 200 | . 2 2 3 5 19 35 48 49 46 47 64 82 105 149 174 186 182 200 Average Rating 118 | . 1 2 2 3 10 32 38 48 41 44 52 77 96 125 150 171 147 179 On Entrance 58 | 6 6 2 2 3 5 17 35 28 43 40 47 64 82 104 148 174 182 132 Naked Turns . | . . . . . . . . . . . . . . . . . . . Heaviest Build 91 | 12 . . . 1 9 12 12 11 8 6 25 36 38 91 91 87 87 69 Greatest Support 265 | 20 3 3 3 3 11 15 28 36 36 17 36 36 56 219 180 265 257 255 Greatest Overweight (x) 1 | . . . . . . . . . . . . . . 1 . 1 . . Average Overweight (x) . | . . . . . . . . . . . . . . . . . . . Largest Inventory Capacity 5 | . 5 5 5 5 5 5 5 5 5 5 5 5 5 5 5 5 5 5 Average Capacity 5 | . 5 5 5 5 5 5 5 5 5 5 5 5 5 5 5 5 5 5 Most Carried 5 | . 4 . 1 2 5 3 3 1 1 1 4 5 5 5 5 5 5 5 Average Carried 3 | . . . . 1 2 . 1 . . . 2 4 4 4 4 4 4 4 Final Capacity 8 | 8 5 5 5 5 5 5 5 5 5 5 5 5 5 5 5 5 5 5 Final Carried 6 | 6 . . 1 1 4 . 3 1 1 1 4 5 5 4 5 5 5 5 Class Distribution -------------------- 36% | Hacker-Mutant 20% | Mutant 11% | Scavenger-Mutant 9% | Derelict-Sprinter 4% | Scavenger-Skirmisher 3% | Hacker-Tank 3% | Scavenger-Tank Dominant Class ---------------- Mutant | -10/Mines Mutant | -10/Subcaves Mutant | -7/Recycling Mutant | -7/Scraptown Mutant | -5/Factory Mutant | -5/DSF Derelict-Sprinter | -4/Factory Derelict-Sprinter | -4/Upper Caves Mutant | -4/Upper Caves Mutant | -4/Zhirov Derelict-Sprinter | -3/Proximity Caves Derelict-Sprinter | -3/Research Scavenger-Gladiator | -3/Armory Scavenger-Mutant | -3/Lab Hacker-Mutant | -2/Research Hacker-Mutant | -2/Testing Hacker-Mutant | -2/Section 7 Resources | -11 -10 -10 -10 -7 -7 -5 -5 -4 -4 -4 -4 -3 -3 -3 -3 -2 -2 -2 ----------- Run | Yrd Mat Min Sub Rec Scr Fac DSF Fac Upp Upp Zhi Pro Res Arm Lab Res Tes Sec Matter Collected 1595 | 200 . . 38 . 10 . . . . . . 101 107 245 76 234 342 242 Remotely . | . . . . . . . . . . . . . . . . . . . Salvage Created 4212 | . . . . . . . . . . . . . . 86 76 1386 1559 1105 Parts 169 | . . . . . . . . . . . . . . 2 6 69 49 43 Haulers Intercepted . | . . . . . . . . . . . . . . . . . . . Recyclers Shooed 4 | . . . . . . . . . . . . . . . . 1 2 1 Parts Field Recycled . | . . . . . . . . . . . . . . . . . . . Retrieved Matter . | . . . . . . . . . . . . . . . . . . . Parts Self-Destructed 2 | . . . 2 . . . . . . . . . . . . . . . Prevented . | . . . . . . . . . . . . . . . . . . . Kills | -11 -10 -10 -10 -7 -7 -5 -5 -4 -4 -4 -4 -3 -3 -3 -3 -2 -2 -2 ------- Run | Yrd Mat Min Sub Rec Scr Fac DSF Fac Upp Upp Zhi Pro Res Arm Lab Res Tes Sec Combat Hostiles Destroyed 53 | . . . . . . . . . . . . . . 1 1 18 20 13 Melee 2 | . . . . . . . . . . . . . . 1 1 . . . Cannons 32 | . . . . . . . . . . . . . . . . 13 10 9 Classes Destroyed 9 | . . . . . . . . . . . . . . 1 . 6 1 1 Recycler 4 | . . . . . . . . . . . . . . . . 1 2 1 Operator 1 | . . . . . . . . . . . . . . . . 1 . . Swarmer 9 | . . . . . . . . . . . . . . . . 4 5 . Grunt 12 | . . . . . . . . . . . . . . . . . 9 3 Brawler 1 | . . . . . . . . . . . . . . 1 . . . . Sentry 1 | . . . . . . . . . . . . . . . . . . 1 Hunter 9 | . . . . . . . . . . . . . . . . 7 . 2 Programmer 15 | . . . . . . . . . . . . . . . . 6 5 4 Heavy 2 | . . . . . . . . . . . . . . . . 1 . 1 S7 Guard 2 | . . . . . . . . . . . . . . . . . . 2 Protovariant H 1 | . . . . . . . . . . . . . . . . . 1 . Best Kill Streak 8 | . . . . . . . . . . . . . . 1 1 8 5 4 Combat Bots Only 7 | . . . . . . . . . . . . . . 1 1 7 4 4 Max Kills in Single Turn 1 | . . . . . . . . . . . . . . 1 1 1 1 1 Gunslinging . | . . . . . . . . . . . . . . . . . . . Exploded . | . . . . . . . . . . . . . . . . . . . Melee 1 | . . . . . . . . . . . . . . 1 1 . . . Uniques/NPCs Destroyed 1 | . . . . . . . . . . . . . . . 1 . . . A5 (-3/Lab) Combat | -11 -10 -10 -10 -7 -7 -5 -5 -4 -4 -4 -4 -3 -3 -3 -3 -2 -2 -2 -------- Run | Yrd Mat Min Sub Rec Scr Fac DSF Fac Upp Upp Zhi Pro Res Arm Lab Res Tes Sec Hostile Shots Fired 650 | . . . 63 . 13 . 4 10 10 . . 10 8 6 56 100 185 185 Missed 216 | . . . 33 . 6 . 3 4 6 . . 7 3 3 11 31 65 44 Deflected 6 | . . . . . . . . . . . . . . . 6 . . . Hits 434 | . . . 30 . 7 . 1 6 4 . . 3 5 3 45 69 120 141 Melee 1 | . . . . . . . 1 . . . . . . . . . . . Projectile 433 | . . . 30 . 7 . . 6 4 . . 3 5 3 45 69 120 141 Critical Strikes 28 | . . . . . 2 . 1 . . . . . 4 . . 6 7 8 Actively Blocked 8 | . . . . . . . . . . . . . . . . . . 8 Part Disruptions 2 | . . . . . . . . . . . . . . . . 1 1 . Damage Taken 10793 | . . . 487 . 134 . 339 130 77 . . 64 97 66 1010 1230 3368 3791 Core 1802 | . . . 177 . 36 . 155 24 19 . . 17 . . . 43 238 1093 Absorbed by Shields . | . . . . . . . . . . . . . . . . . . . Reduced by Siege Mode 17 | . . . . . . . . . . . . . . . . . . 17 Ignored by Resistances 768 | . . . . . . . . . . . . . . . . . . 768 Regen/Repaired (Parts) 1273 | . . . . . . . . . . . . . . . 46 346 642 239 Core Remaining (%) 77 | 100 . . . . 14 . 84 . . . . 94 . . 94 . . . Volleys Fired 241 | . . . . 3 2 . 3 1 . . . 1 . 1 . 70 69 91 Largest 1 | . . . . 1 1 . 1 1 . . . 1 . 1 . 1 1 1 Hottest 100 | . . . . 20 65 . 60 60 . . . 60 . 60 . 100 100 100 Shots Fired 240 | . . . . 3 2 . 3 1 . . . 1 . 1 . 70 69 90 Gun . | . . . . . . . . . . . . . . . . . . . Cannon 229 | . . . . . 1 . . . . . . . . . . 70 69 89 Launcher . | . . . . . . . . . . . . . . . . . . . Special 11 | . . . . 3 1 . 3 1 . . . 1 . 1 . . . 1 Kinetic 17 | . . . . . . . . . . . . . . . . . . 17 Thermal 223 | . . . . 3 2 . 3 1 . . . 1 . 1 . 70 69 73 Explosive . | . . . . . . . . . . . . . . . . . . . Electromagnetic . | . . . . . . . . . . . . . . . . . . . Robot Hit Streak 67 | . . . . 1 . . . . . . . . . . . 22 62 67 Robot Miss Streak 1 | . . . . 1 . . . . . . . . . . . . . 1 Penetration Max . | . . . . . . . . . . . . . . . . . . . Secondary Targets . | . . . . . . . . . . . . . . . . . . . Shots Hit Robots 136 | . . . . 2 . . . . . . . . . 3 22 21 40 48 Core Hits 75 | . . . . . . . . . . . . . . 2 7 21 22 23 Critical Kills 20 | . . . . . . . . . . . . . . . . 5 10 5 Critical Parts Destroyed . | . . . . . . . . . . . . . . . . . . . Critical Strikes 24 | . . . . . . . . . . . . . . 1 3 5 10 5 Meltdown 20 | . . . . . . . . . . . . . . . . 5 10 5 Sever 4 | . . . . . . . . . . . . . . 1 3 . . . Melee Attacks 33 | . . . . . . . . . . . . . . 3 30 . . . Impact . | . . . . . . . . . . . . . . . . . . . Slashing 33 | . . . . . . . . . . . . . . 3 30 . . . Piercing . | . . . . . . . . . . . . . . . . . . . Sneak Attacks 3 | . . . . . . . . . . . . . . 3 . . . . Combat Hostiles . | . . . . . . . . . . . . . . . . . . . Follow-up Attacks 1 | . . . . . . . . . . . . . . 1 . . . . Damage Inflicted 10750 | . . . 6 22 . . 10 . . . . . . 180 1150 2603 3136 3643 Guns . | . . . . . . . . . . . . . . . . . . . Cannons 9374 | . . . . . . . . . . . . . . . . 2603 3128 3643 Explosions . | . . . . . . . . . . . . . . . . . . . Melee 1330 | . . . . . . . . . . . . . . 180 1150 . . . Ramming 24 | . . . 6 . . . 10 . . . . . . . . . 8 . Kinetic 544 | . . . . . . . . . . . . . . . . . . 544 Thermal 8852 | . . . . 22 . . . . . . . . . . . 2603 3128 3099 Explosive . | . . . . . . . . . . . . . . . . . . . Electromagnetic . | . . . . . . . . . . . . . . . . . . . Impact . | . . . . . . . . . . . . . . . . . . . Slashing 1330 | . . . . . . . . . . . . . . 180 1150 . . . Piercing . | . . . . . . . . . . . . . . . . . . . Highest Corruption 10 | . 1 1 1 1 . . 4 . . . . 2 . . 10 2 6 6 Average Corruption 3 | . 1 1 1 1 . . 4 . . . . 2 . . 6 1 4 4 Corruption Purged 8 | . . . . . . . . . . . . . . . . 2 . 6 Corruption Blocked . | . . . . . . . . . . . . . . . . . . . Effects 35 | . . . 1 1 . . . . . . . . . . 3 4 20 6 Message Errors 8 | . . . . . . . . . . . . . . . 2 . 4 2 Matter Fused 9 | . . . 1 . . . . . . . . . . . . 1 6 1 Heat Flow Errors 6 | . . . . 1 . . . . . . . . . . . 1 3 1 Energy Discharges 2 | . . . . . . . . . . . . . . . . . 1 1 Parts Rejected 2 | . . . . . . . . . . . . . . . . 1 1 . Data Loss (minor) 7 | . . . . . . . . . . . . . . . 1 1 4 1 Alerts 1 | . . . . . . . . . . . . . . . . . 1 . Overload Shots . | . . . . . . . . . . . . . . . . . . . Overflow Damage 432 | . . . . . . . . . . . . . . . 20 121 152 139 Projectiles 412 | . . . . . . . . . . . . . . . . 121 152 139 Explosions . | . . . . . . . . . . . . . . . . . . . Melee 20 | . . . . . . . . . . . . . . . 20 . . . Knockbacks 1 | . . . . . . . . . . . . . . . . . . 1 Impact . | . . . . . . . . . . . . . . . . . . . Kinetic 1 | . . . . . . . . . . . . . . . . . . 1 Secondary . | . . . . . . . . . . . . . . . . . . . Self-Inflicted Damage 8 | . . . 3 . . . 5 . . . . . . . . . . . Shots . | . . . . . . . . . . . . . . . . . . . Rammed 6 | . . . 2 . . . 2 . . . . . . . . . 2 . Targets Rammed 6 | . . . 2 . . . 2 . . . . . . . . . 2 . Kicked . | . . . . . . . . . . . . . . . . . . . Crushed . | . . . . . . . . . . . . . . . . . . . Highest Temperature 361 | . . . . 184 71 . . . . . . . 101 3 . 130 361 153 Average Temperature 77 | . . . . 96 30 . . . . . . . 101 2 . 70 119 55 Received Heat Transfer 1143 | . . . 78 . 61 . . 27 30 . . 9 113 9 . . 681 135 Siege Activations 2 | . . . . . . . . . . . . . . . . 1 . 1 Total Turns 30 | . . . . . . . . . . . . . . . . 14 . 16 Longest Duration 16 | . . . . . . . . . . . . . . . . 14 . 16 Martial Activations . | . . . . . . . . . . . . . . . . . . . Shielding Activations 1 | . . . . . . . . . . . . . . . 1 . . . Total Turns 62 | . . . . . . . . . . . . . . . 62 . . . Longest Duration 62 | . . . . . . . . . . . . . . . 62 . . . Robots Disrupted . | . . . . . . . . . . . . . . . . . . . Combat Hostiles . | . . . . . . . . . . . . . . . . . . . Robots Corrupted . | . . . . . . . . . . . . . . . . . . . Combat Hostiles . | . . . . . . . . . . . . . . . . . . . Parts Fried . | . . . . . . . . . . . . . . . . . . . Impact Corruptions . | . . . . . . . . . . . . . . . . . . . Robots Melted 20 | . . . . . . . . . . . . . . . . 5 10 5 Combat Hostiles 19 | . . . . . . . . . . . . . . . . 5 10 4 Parts Melted 50 | . . . . . . . . . . . . . . . . 13 24 13 Heat Transferred 7104 | . . . . 74 . . . . . . . . . . . 2035 2442 2553 Parts Sabotaged . | . . . . . . . . . . . . . . . . . . . Parts Stolen . | . . . . . . . . . . . . . . . . . . . Parts Stripped . | . . . . . . . . . . . . . . . . . . . Power Chain Reactions . | . . . . . . . . . . . . . . . . . . . Alert | -11 -10 -10 -10 -7 -7 -5 -5 -4 -4 -4 -4 -3 -3 -3 -3 -2 -2 -2 ------- Run | Yrd Mat Min Sub Rec Scr Fac DSF Fac Upp Upp Zhi Pro Res Arm Lab Res Tes Sec Maximum Alert Level 1 | . . . . . . . . . . . . . . . . 1 1 1 Low Security (%) 61 | . 100 100 . 100 . 100 100 100 . . . . 100 100 . 75 16 59 Level 1 38 | . . . . . . . . . . . . . . . . 24 83 40 Level 2 . | . . . . . . . . . . . . . . . . . . . Level 3 . | . . . . . . . . . . . . . . . . . . . Level 4 . | . . . . . . . . . . . . . . . . . . . Level 5 . | . . . . . . . . . . . . . . . . . . . High Security . | . . . . . . . . . . . . . . . . . . . Max Security . | . . . . . . . . . . . . . . . . . . . Peak Influence 390 | . . . . 17 . 2 9 45 . . . . 105 59 . 271 390 301 Initial 167 | . . . . 17 . . 1 . . . . . 50 49 . . 126 167 Average 164 | . . . . 4 . 1 2 13 . . . . 76 12 . 149 304 165 Influence Increases 2194 | . . . 105 . . 2 10 85 60 . . 75 95 42 . 524 650 546 Destroy 0b10 Robot/C 1040 | . . . . . . . . . . . . . . 20 . 360 400 260 Destroy 0b10 Robot/NC 25 | . . . . . . . . . . . . . . . . 10 10 5 Destroy Leader 170 | . . . . . . . . . . . . . . . . 70 50 50 Allied During Kill 2 | . . . . . . . . . . . . . . 2 . . . . Successful Hack 143 | . . . . . . . . . . . . . 56 20 . 30 13 24 Disable Machine 90 | . . . . . . . . . . . . . . . . 15 30 45 Destroy Structure 139 | . . . . . . 2 10 10 . . . . 24 . . 24 27 42 Partial Spotted 45 | . . . . . . . . 30 . . . . 15 . . . . . Lose Combat Pursuer 540 | . . . 105 . . . . 45 60 . . 75 . . . 15 120 120 Influence Decreases 1909 | . . . 68 37 . . 12 40 65 40 . . 75 137 . 298 578 559 Entered New Map 349 | . . . . 20 . . 1 . 18 8 . . 25 46 . . 100 131 Time Decay 1320 | . . . 68 17 . . . 40 47 32 . . 40 62 . 278 368 368 Lost Part 220 | . . . . . . . 11 . . . . . 10 9 . 20 110 60 Lost Ally 20 | . . . . . . . . . . . . . . 20 . . . . Squads Dispatched 20 | . 1 . . . . . 1 1 . . . . 1 3 . 3 3 7 Investigation 1 | . 1 . . . . . . . . . . . . . . . . . Extermination 7 | . . . . . . . . 1 . . . . . . . 2 2 2 Reinforcement 9 | . . . . . . . 1 . . . . . 1 3 . 1 1 2 Assault . | . . . . . . . . . . . . . . . . . . . Garrison . | . . . . . . . . . . . . . . . . . . . Intercept 3 | . . . . . . . . . . . . . . . . . . 3 Searches Triggered . | . . . . . . . . . . . . . . . . . . . Construction Impeded 1 | . . . . . . . . . . . . . . . . . . 1 Haulers Reinforced . | . . . . . . . . . . . . . . . . . . . Active Scanning Responses . | . . . . . . . . . . . . . . . . . . . Cargo Convoy Interrupts . | . . . . . . . . . . . . . . . . . . . Stealth | -11 -10 -10 -10 -7 -7 -5 -5 -4 -4 -4 -4 -3 -3 -3 -3 -2 -2 -2 --------- Run | Yrd Mat Min Sub Rec Scr Fac DSF Fac Upp Upp Zhi Pro Res Arm Lab Res Tes Sec Distress Signals 11 | . 1 . . . . . . . . . . . . 3 . . 4 3 Communications Jammed . | . . . . . . . . . . . . . . . . . . . Distress Signals . | . . . . . . . . . . . . . . . . . . . Times Spotted 145 | . 1 . 18 . 6 . 3 10 4 . . 4 7 9 1 19 31 32 Peak Tracking Total 15 | . 3 . 8 . 7 . 3 7 4 . . 7 6 4 1 5 9 15 Tactical Retreats 21 | . . . 7 . . . . 2 1 . . 1 . . . 1 4 5 Traps | -11 -10 -10 -10 -7 -7 -5 -5 -4 -4 -4 -4 -3 -3 -3 -3 -2 -2 -2 ------- Run | Yrd Mat Min Sub Rec Scr Fac DSF Fac Upp Upp Zhi Pro Res Arm Lab Res Tes Sec Traps Triggered 6 | . 1 . 3 . . . . . . . . . . . . 1 1 . Indirectly . | . . . . . . . . . . . . . . . . . . . Trap Hack Attempts . | . . . . . . . . . . . . . . . . . . . Triggered . | . . . . . . . . . . . . . . . . . . . Disarmed . | . . . . . . . . . . . . . . . . . . . Reprogrammed . | . . . . . . . . . . . . . . . . . . . Reused . | . . . . . . . . . . . . . . . . . . . Traps Extracted . | . . . . . . . . . . . . . . . . . . . Installed . | . . . . . . . . . . . . . . . . . . . Triggered . | . . . . . . . . . . . . . . . . . . . Machines | -11 -10 -10 -10 -7 -7 -5 -5 -4 -4 -4 -4 -3 -3 -3 -3 -2 -2 -2 ---------- Run | Yrd Mat Min Sub Rec Scr Fac DSF Fac Upp Upp Zhi Pro Res Arm Lab Res Tes Sec Machines Disabled 10 | . . . . . 2 . . . . 1 . . . . 1 1 2 3 Max in Single Turn 1 | . . . . . 1 . . . . 1 . . . . 1 1 1 1 Garrison Access 1 | . . . . . . . . . . . . . 1 . . . . . Machines Repaired . | . . . . . . . . . . . . . . . . . . . Machines Dismantled 1 | . . . . . 1 . . . . . . . . . . . . . Machines Sabotaged . | . . . . . . . . . . . . . . . . . . . Overloaded Fab Kills . | . . . . . . . . . . . . . . . . . . . Hacking | -11 -10 -10 -10 -7 -7 -5 -5 -4 -4 -4 -4 -3 -3 -3 -3 -2 -2 -2 --------- Run | Yrd Mat Min Sub Rec Scr Fac DSF Fac Upp Upp Zhi Pro Res Arm Lab Res Tes Sec Machines Accessed 32 | . 1 . 1 . 1 1 . . . 1 7 . 8 2 . 3 2 5 Terminals 13 | . 1 . . . . 1 . . . . . . 2 2 . 2 2 3 Fabricators 3 | . . . . . . . . . . . . . 3 . . . . . Repair Stations 1 | . . . . . . . . . . . . . 1 . . . . . Recycling Units 2 | . . . . . . . . . . . . . 1 . . 1 . . Scanalyzers 2 | . . . . . . . . . . . . . . . . . . 2 Garrison Access 1 | . . . . . . . . . . . . . 1 . . . . . Total Hacks 110 | . 2 . 5 . 20 1 . . . 1 29 . 16 4 . 14 6 12 Successful 77 | . . . 5 . 20 1 . . . 1 29 . 8 2 . 4 2 5 Failed 33 | . 2 . . . . . . . . . . . 8 2 . 10 4 7 Catastrophic 10 | . 2 . . . . . . . . . . . 1 . . 4 . 3 Database Lockouts . | . . . . . . . . . . . . . . . . . . . Manual 38 | . 2 . . . . . . . . . . . 9 2 1 10 5 9 Terminals 34 | . 2 . . . . 1 . . . . . . 4 4 . 8 6 9 Fabricators 7 | . . . . . . . . . . . . . 7 . . . . . Repair Stations 1 | . . . . . . . . . . . . . 1 . . . . . Recycling Units 8 | . . . . . . . . . . . . . 2 . . 6 . . Scanalyzers 3 | . . . . . . . . . . . . . . . . . . 3 Garrison Access 2 | . . . . . . . . . . . . . 2 . . . . . Terminal Hacks 66 | . . . 5 . 20 1 . . . 1 29 . 1 2 . 1 2 4 Record 43 | . . . 5 . 20 . . . . 1 17 . . . . . . . Part Schematic 4 | . . . . . . . . . . . 4 . . . . . . . Robot Analysis 4 | . . . . . . . . . . . 4 . . . . . . . Prototype ID Bank 4 | . . . . . . . . . . . 4 . . . . . . . Open DSF 1 | . . . . . . 1 . . . . . . . . . . . . Level Access Points 1 | . . . . . . . . . . . . . . . . . 1 . Branch Access Points 2 | . . . . . . . . . . . . . . . . 1 1 . Emergency Access Points 1 | . . . . . . . . . . . . . . 1 . . . . Machine Index 1 | . . . . . . . . . . . . . 1 . . . . . Terminal Index 1 | . . . . . . . . . . . . . . . . . . 1 Locate Traps 1 | . . . . . . . . . . . . . . 1 . . . . Zone Layout 1 | . . . . . . . . . . . . . . . . . . 1 Activate Exoskeleton 2 | . . . . . . . . . . . . . . . . . . 2 Fabricator Hacks 1 | . . . . . . . . . . . . . 1 . . . . . Network Status 1 | . . . . . . . . . . . . . 1 . . . . . Repair Station Hacks 1 | . . . . . . . . . . . . . 1 . . . . . Refit 1 | . . . . . . . . . . . . . 1 . . . . . Recycling Unit Hacks 2 | . . . . . . . . . . . . . 1 . . 1 . . Retrieve Components 2 | . . . . . . . . . . . . . 1 . . 1 . . Scanalyzer . | . . . . . . . . . . . . . . . . . . . Garrison Access Hacks 1 | . . . . . . . . . . . . . 1 . . . . . Seal Access 1 | . . . . . . . . . . . . . 1 . . . . . Unauthorized Hacks 6 | . . . . . . . . . . . . . 3 . . 2 . 1 Terminals . | . . . . . . . . . . . . . . . . . . . Fabricators 2 | . . . . . . . . . . . . . 2 . . . . . Liberate 1 | . . . . . . . . . . . . . 1 . . . . . Fabnet 1 | . . . . . . . . . . . . . 1 . . . . . Repair Stations . | . . . . . . . . . . . . . . . . . . . Recycling Units 3 | . . . . . . . . . . . . . 1 . . 2 . . Recyclers 1 | . . . . . . . . . . . . . . . . 1 . . Mask 2 | . . . . . . . . . . . . . 1 . . 1 . . Scanalyzers 1 | . . . . . . . . . . . . . . . . . . 1 Researchers 1 | . . . . . . . . . . . . . . . . . . 1 Garrison Access . | . . . . . . . . . . . . . . . . . . . Data Cores Recovered 1 | . . . . . . . . . . . . . . . . 1 . . Used . | . . . . . . . . . . . . . . . . . . . Hacking Detections 19 | . 1 . . . . . . . . . . . 8 2 . 2 2 4 Full Trace Events 1 | . 1 . . . . . . . . . . . . . . . . . Feedback Events . | . . . . . . . . . . . . . . . . . . . Feedback Blocked . | . . . . . . . . . . . . . . . . . . . Robot Schematics Acquired . | . . . . . . . . . . . . . . . . . . . Robots Built . | . . . . . . . . . . . . . . . . . . . Authchips . | . . . . . . . . . . . . . . . . . . . Time . | . . . . . . . . . . . . . . . . . . . Total Robot Build Rating . | . . . . . . . . . . . . . . . . . . . Part Schematics Acquired 4 | . . . . . . . . . . . 4 . . . . . . . Parts Built . | . . . . . . . . . . . . . . . . . . . Authchips . | . . . . . . . . . . . . . . . . . . . Time . | . . . . . . . . . . . . . . . . . . . Total Part Build Rating . | . . . . . . . . . . . . . . . . . . . Parts Repaired . | . . . . . . . . . . . . . . . . . . . Time . | . . . . . . . . . . . . . . . . . . . Parts Recycled . | . . . . . . . . . . . . . . . . . . . Recycled Matter . | . . . . . . . . . . . . . . . . . . . Retrieved Matter . | . . . . . . . . . . . . . . . . . . . Retrieved Components 4 | . . . . . . . . . . . . . 2 . . 2 . . Parts Scanalyzed . | . . . . . . . . . . . . . . . . . . . Part Schematics Acquired . | . . . . . . . . . . . . . . . . . . . Parts Damaged . | . . . . . . . . . . . . . . . . . . . Bothacking | -11 -10 -10 -10 -7 -7 -5 -5 -4 -4 -4 -4 -3 -3 -3 -3 -2 -2 -2 ------------ Run | Yrd Mat Min Sub Rec Scr Fac DSF Fac Upp Upp Zhi Pro Res Arm Lab Res Tes Sec Used RIF Installer . | . . . . . . . . . . . . . . . . . . . Robots Hacked 1 | . . . . . . . . . . . . . . . . . . 1 Non-combat . | . . . . . . . . . . . . . . . . . . . Combat 1 | . . . . . . . . . . . . . . . . . . 1 Robot Hacks Applied . | . . . . . . . . . . . . . . . . . . . Relay Couplers Released . | . . . . . . . . . . . . . . . . . . . Fabnet Peak Effective % 3 | . . . . . . . . . . . . . . . . 3 3 3 Autooverrided 1 | . . . . . . . . . . . . . . . . . . 1 Robots Rewired 2 | . . . . . . . . . . . . . . 2 . . . . Allies Hacked . | . . . . . . . . . . . . . . . . . . . Hacks Repelled . | . . . . . . . . . . . . . . . . . . . Allies | -11 -10 -10 -10 -7 -7 -5 -5 -4 -4 -4 -4 -3 -3 -3 -3 -2 -2 -2 -------- Run | Yrd Mat Min Sub Rec Scr Fac DSF Fac Upp Upp Zhi Pro Res Arm Lab Res Tes Sec Total Allies 3 | . . . . . . . . . . . . . . 2 . . . 1 Largest Group 2 | . . . . . . . . . . . . . . 2 . . . 1 Highest-Rated Group 84 | . . . . . . . . . . . . . . 84 . . . 64 Highest-Rated Ally 64 | . . . . . . . . . . . . . . 42 . . . 64 Total Orders 3 | . . . . . . . . 1 . 1 . 1 . . . . . . RETURN 3 | . . . . . . . . 1 . 1 . 1 . . . . . . Ally Attacks 10 | . . . . . . . . . . . . . . 10 . . . . Total Damage 347 | . . . . . . . . . . . . . . 347 . . . . Kills . | . . . . . . . . . . . . . . . . . . . Allies Corrupted . | . . . . . . . . . . . . . . . . . . . Allies Melted . | . . . . . . . . . . . . . . . . . . . Intel | -11 -10 -10 -10 -7 -7 -5 -5 -4 -4 -4 -4 -3 -3 -3 -3 -2 -2 -2 ------- Run | Yrd Mat Min Sub Rec Scr Fac DSF Fac Upp Upp Zhi Pro Res Arm Lab Res Tes Sec Active Infowar (turns) 2028 | . . . . . . 2 . . . . . 58 87 128 . 361 636 756 Optics 613 | . . . . . . . . . . . . . . . . 102 . 511 Sensors 1659 | . . . . . . . . . . . . . . . . 357 636 666 Terrain 215 | . . . . . . . . . . . . . 87 128 . . . . Structural 2 | . . . . . . 2 . . . . . . . . . . . . Seismic 144 | . . . . . . . . . . . . 58 86 . . . . . Robot Analysis Total 4 | . . . . . . . . . . . 4 . . . . . . . Derelict Logs Recovered 2 | . . . 1 . . . . . . 1 . . . . . . . . Drone Launches 7 | . . . . . . . . 3 . 3 . 1 . . . . . . Drone Recoveries 7 | . . . . . . . . 3 . 3 . 1 . . . . . . Exploration | -11 -10 -10 -10 -7 -7 -5 -5 -4 -4 -4 -4 -3 -3 -3 -3 -2 -2 -2 ------------- Run | Yrd Mat Min Sub Rec Scr Fac DSF Fac Upp Upp Zhi Pro Res Arm Lab Res Tes Sec Turns Passed 4573 | . 24 60 422 100 225 10 33 108 122 80 56 74 87 330 431 717 854 840 Spaces Moved 5140 | 1 39 57 827 178 478 19 55 337 393 214 153 193 272 250 201 366 455 652 Core 1259 | . 39 57 827 178 143 . . . . . . . . 15 . . . . Treads 1154 | . . . . . . . . . . . . . . 11 201 160 455 327 Legs 137 | 1 . . . . . . . . . . . . . 136 . . . . Wheels 206 | . . . . . . . . . . . . . . . . 206 . . Hover . | . . . . . . . . . . . . . . . . . . . Flight 2059 | . . . . . 335 19 55 337 393 214 153 193 272 88 . . . . Fastest Speed 26 | 120 50 50 50 50 34 30 28 29 29 34 29 29 29 26 160 100 135 135 Average Speed 69 | 120 50 50 50 50 38 30 29 29 30 34 32 29 29 86 160 132 141 136 Slowest Speed 160 | 120 50 50 50 50 50 30 32 29 34 34 34 29 29 160 160 160 151 138 Overloaded Moves . | . . . . . . . . . . . . . . . . . . . Propulsion Burnouts . | . . . . . . . . . . . . . . . . . . . Robots Hopped 14 | . . . . . . . 1 2 4 . . . 3 4 . . . . Potential Cave-ins 26 | . . . . . 7 . 16 3 . . . . . . . . . . Cave-ins Triggered 1 | . . . . . . . 1 . . . . . . . . . . . Teleports 1 | . . . . . . . . . . . . . . 1 . . . . Spacefolds 7 | . . . . . . . . . . . . . . . . . . 7 Microwarps 19 | . . . . . . . . . . . . . . . . . . 19 Exploration Rate (%) 37 | 2 22 12 63 60 41 1 50 18 68 44 62 41 13 14 93 13 50 42 Regions Visited 18 Branch Regions 12 Pre-discovered Areas 9 | . . 1 . . 5 . . . . . 3 . . . . . . . Known Exits Taken 7 | . . . 1 . . 1 . 1 1 . . 1 . . . 1 1 . Unknown Exits Taken 10 | 1 1 1 . 1 1 . . . . 1 1 . 1 1 1 . . . Scrap Searched 5 | . . . 1 . 2 . . . . . . 2 . . . . . . Spaces Dug 125 | . . . . . 21 1 37 13 . 2 1 12 8 . . 5 9 16 Terrain Destroyed 96 | . . . . . 16 1 19 8 . 2 1 6 8 . . 8 10 17 Melee . | . . . . . . . . . . . . . . . . . . . Projectile 13 | . . . . . . . . . . . . . . . . 7 2 4 AOE . | . . . . . . . . . . . . . . . . . . . Terrain Rammed . | . . . . . . . . . . . . . . . . . . . Walls Destroyed . | . . . . . . . . . . . . . . . . . . . Machines Disabled . | . . . . . . . . . . . . . . . . . . . Actions | -11 -10 -10 -10 -7 -7 -5 -5 -4 -4 -4 -4 -3 -3 -3 -3 -2 -2 -2 --------- Run | Yrd Mat Min Sub Rec Scr Fac DSF Fac Upp Upp Zhi Pro Res Arm Lab Res Tes Sec Total 5682 | . 44 87 830 182 500 22 61 342 390 220 157 205 276 354 264 526 594 628 Wait 287 | . . 31 . . . . . 1 . 5 . 8 2 16 4 37 45 138 Move 4799 | . 38 56 826 177 477 18 52 333 384 213 152 192 266 243 200 365 454 353 Hop 10 | . . . . . . . 1 1 4 . . . 2 2 . . . . Pick Up 31 | . . . 1 1 5 . 1 . . 1 3 1 2 3 5 2 1 5 Fast Attach 100 | . 1 . 1 . 4 . 1 1 . . 2 3 . 23 11 25 11 17 Attach 33 | . 1 . . 1 1 4 . 3 1 1 . . 3 3 3 4 3 5 Detach 13 | . . . . . . . 1 2 1 . . . 1 1 . 1 4 2 Swap 9 | . . . . . 1 . . . . . . . . 3 2 1 . 2 Drop 83 | . 4 . . . 4 . . . . . . . . 25 9 21 5 15 Fire 241 | . . . . 3 2 . 3 1 . . . 1 . 1 . 70 69 91 Melee 32 | . . . . . . . . . . . . . . 2 30 . . . Ram 4 | . . . 2 . . . 2 . . . . . . . . . . . Kick . | . . . . . . . . . . . . . . . . . . . Crush 2 | . . . . . . . . . . . . . . . . . 2 . Escape Stasis . | . . . . . . . . . . . . . . . . . . . Rewire 32 | . . . . . . . . . . . . . . 32 . . . . Trap . | . . . . . . . . . . . . . . . . . . . Miscellaneous 6 | . . . . . 6 . . . . . . . . . . . . . Route ------- -11/Scrapyard -10/Materials -10/Mines (discovered 2 exits: [*Mat] / *Sub) -10/Subcaves (discovered 3 exits: *Mat x2 / *Rec) -7/Recycling -7/Scraptown -5/Factory (discovered 8 exits: Fac x4 / Upp x2 / Ext / DSF) -5/DSF -4/Factory (discovered 2 exits: *Upp x2) -4/Upper Caves -4/Upper Caves (discovered 2 exits: *Res / *Zhi) -4/Zhirov -3/Proximity Caves -3/Research -3/Armory -3/Lab -2/Research (discovered 2 exits: *Tes x2) -2/Testing (discovered 3 exits: *Acc / *Sec / [*Frg]) -2/Section 7 History --------- Turn | Location | Event 1 | -11/Scrapyard | Discovered new exit (range 0) 1 | -11/Scrapyard | Entered Materials 1 | -10/Materials | Released all parts (6) 22 | -10/Materials | Discovered new exit (range 8) 25 | -10/Materials | Entered Mines 26 | -10/Mines | Learned location of Storage (-7) 32 | -10/Mines | Discovered new exit (range 7) 69 | -10/Mines | Discovered new exit (range 4) 85 | -10/Mines | Entered Subcaves 114 | -10/Subcaves | Shifting Twisted Machinery released Sub. Monowheel 115 | -10/Subcaves | Shifting Twisted Machinery released Scrap Shield 176 | -10/Subcaves | A swath of the cavern ceiling suddenly collapsed 230 | -10/Subcaves | Discovered new exit (range 16) 258 | -10/Subcaves | Identified exit to Recycling 311 | -10/Subcaves | Build established: Mutant 347 | -10/Subcaves | Core integrity fell below 50% 469 | -10/Subcaves | Visited Clippyterm 470 | -10/Subcaves | Learned 40 Factory zone layouts 470 | -10/Subcaves | Identified exit to Materials 507 | -10/Subcaves | Entered Recycling 595 | -7/Recycling | Scanned before Scraplab entrance 602 | -7/Recycling | Entered Scraplab 606 | -7/Recycling | Discovered new exit (range 3) 607 | -7/Recycling | Entered Scraptown 607 | -7/Scraptown | System corruption cleaned by C-Scrubber 657 | -7/Scraptown | Visited UFD Registry 657 | -7/Scraptown | Registered with UFD as "Cryoblaster" 673 | -7/Scraptown | Visited DA-N13 Charitable Foundation 677 | -7/Scraptown | Found DCF Scrap (28 items) 706 | -7/Scraptown | Visited Cartography Club 714 | -7/Scraptown | Found Surveybot 17 Chip 736 | -7/Scraptown | Learned location of 3 exits from Lower Caves 736 | -7/Scraptown | Learned location of 2 exits from Factory 736 | -7/Scraptown | Learned Materials emergency access door positions 736 | -7/Scraptown | Learned 4 Armory zone layouts 736 | -7/Scraptown | Learned 12 Proximity Caves zone layouts 736 | -7/Scraptown | Learned 8 Proximity Caves zone layouts 736 | -7/Scraptown | Learned 8 Upper Caves zone layouts 736 | -7/Scraptown | Learned 12 Upper Caves zone layouts 736 | -7/Scraptown | Learned 20 Lower Caves zone layouts 736 | -7/Scraptown | Learned 16 Factory zone layouts 736 | -7/Scraptown | Learned 8 Factory zone layouts 736 | -7/Scraptown | Learned 12 Materials zone layouts 736 | -7/Scraptown | Learned location of Hub_04(d) (-5) 744 | -7/Scraptown | Found Deep Structural Scanner 792 | -7/Scraptown | Visited LU-1G1's Boring Crew 810 | -7/Scraptown | Attacked by Scraptown defenders 816 | -7/Scraptown | Found Prototype Special Weapon 816 | -7/Scraptown | Identified LU-1G1's Laser Shovel 829 | -7/Scraptown | Core integrity fell below 20% 831 | -7/Scraptown | Discovered new exit (range 3) 832 | -7/Scraptown | Entered Factory 832 | -5/Factory | Evolved 10 slots: Propulsion x3, Utility x7 833 | -5/Factory | Identified exit to Upper Caves 834 | -5/Factory | Identified exit to Factory 835 | -5/Factory | Identified exit to Extension 842 | -5/Factory | Identified exit to DSF 842 | -5/Factory | Entered DSF 858 | -5/DSF | Additional patrols routed to DSF 864 | -5/DSF | Crushed by falling debris 873 | -5/DSF | Discovered exit to Factory (range 8) 875 | -5/DSF | Entered Factory 875 | -4/Factory | Evolved 2 slots: Propulsion x1, Utility x1 876 | -4/Factory | Identified exit to Upper Caves 901 | -4/Factory | Lost 3 parts (1n2u) 983 | -4/Factory | Entered Upper Caves 984 | -4/Upper Caves | Identified exit to Upper Caves 1105 | -4/Upper Caves | Entered another Upper Caves area 1108 | -4/Upper Caves | Discovered new exit (range 15) 1129 | -4/Upper Caves | Learned Research garrison access intel 1137 | -4/Upper Caves | Found Alien Artifact 1182 | -4/Upper Caves | Discovered new exit (range 8) 1185 | -4/Upper Caves | Entered Zhirov 1185 | -4/Zhirov | Discovered new exit (range 3) 1192 | -4/Zhirov | Met Zhirov 1201 | -4/Zhirov | Learned location of Command (-1) 1201 | -4/Zhirov | Learned location of Testing (-2) 1201 | -4/Zhirov | Learned location of Quarantine (-3) 1205 | -4/Zhirov | Zhirov requested help retrieving the SGEMP Prototype 1211 | -4/Zhirov | Found Alien Artifact 1216 | -4/Zhirov | Found Alien Artifact 1241 | -4/Zhirov | Entered Proximity Caves 1242 | -3/Proximity Caves | Identified exit to Research 1315 | -3/Proximity Caves | Entered Research 1315 | -3/Research | Evolved 2 slots: Power x1, Propulsion x1 1316 | -3/Research | Loaded intel: 4 garrison access locations 1361 | -3/Research | Found Prototype Device 1396 | -3/Research | Discovered new exit (range 16) 1402 | -3/Research | Entered Armory 1403 | -3/Armory | Met VL-GR5, who suggested a friendly competition 1437 | -3/Armory | Spotted B-86 Titan 1495 | -3/Armory | Identified Exp. Thermal Shield 1729 | -3/Armory | Identified Transdimensional Reconstructor 1729 | -3/Armory | Warped through subspace to slip node 1729 | -3/Armory | Discovered new exit (range 1) 1732 | -3/Armory | Entered Lab 1732 | -3/Lab | Discovered new exit (range 9) 1753 | -3/Lab | Unable to decrypt terminal 1753 | -3/Lab | Opened the door to a hidden lab 1754 | -3/Lab | Gained access to the hidden lab's interior 1768 | -3/Lab | Detected by scanners 1777 | -3/Lab | Confronted by A5 1831 | -3/Lab | System corruption reached 10% 1846 | -3/Lab | Destroyed A5 1863 | -3/Lab | Found Alien Artifact 1863 | -3/Lab | Identified Core Reset Matrix 1863 | -3/Lab | Identified Integrated Dissipator 1863 | -3/Lab | Identified Dimensional Node Initializer 1863 | -3/Lab | Used Core Reset Matrix 1867 | -3/Lab | Sensed 3 artifacts in vicinity 1906 | -3/Lab | Found Prototype Protection 1906 | -3/Lab | Identified Med. Regenerative Plating 1913 | -3/Lab | Found Prototype Energy Cannon 1913 | -3/Lab | Identified Warp Cannon 1921 | -3/Lab | Found Prototype Hackware 1934 | -3/Lab | Build established: Scavenger-Mutant 1990 | -3/Lab | Found Warp Cannon 2034 | -3/Lab | Discovered new exit (range 7) 2037 | -3/Lab | Found Med. Regenerative Plating 2065 | -3/Lab | Installed Integrated Dissipator, increased core heat dissipation (+20) 2071 | -3/Lab | Found Prototype Hackware 2097 | -3/Lab | Found Integrated Mediator 2097 | -3/Lab | Installed Integrated Mediator, increased core attachment efficiency 2108 | -3/Lab | Identified Quantum Router 2112 | -3/Lab | Found Transdimensional Reconstructor 2128 | -3/Lab | Identified Exp. System Shield 2130 | -3/Lab | Found Core Expander 2163 | -3/Lab | Entered Research 2163 | -2/Research | Evolved 2 slots: Utility x1, Weapon x1 2315 | -2/Research | Destroyed 7 combat bots 2398 | -2/Research | Build established: Hacker-Mutant 2574 | -2/Research | Identified exit to Testing 2777 | -2/Research | Found Unknown Launcher 2858 | -2/Research | Identified Gamma Bomb Array 2880 | -2/Research | Entered Testing 2896 | -2/Testing | Found Prototype Hackware 2896 | -2/Testing | Identified Ghost Barrier 3162 | -2/Testing | Identified exit to Access 3220 | -2/Testing | Spotted PH-LQ64LYUEG8 3294 | -2/Testing | Destroyed PH-LQ64LYUEG8 3322 | -2/Testing | Lost 5 parts (2p2n1u) 3608 | -2/Testing | Spotted Fortress 3664 | -2/Testing | Lost 4 parts (1p1n2u) 3724 | -2/Testing | Discovered new exit (range 6) 3724 | -2/Testing | Discovered new exit (range 7) 3730 | -2/Testing | Identified exit to Section 7 3734 | -2/Testing | Entered Section 7 3735 | -2/Section 7 | Detected hypermatrix surge 3735 | -2/Section 7 | Sensed 21 artifacts in vicinity 3819 | -2/Section 7 | Found Prototype Device 3819 | -2/Section 7 | Identified Adv. Kinecellerator 3824 | -2/Section 7 | Found Prototype Device 3824 | -2/Section 7 | Identified Exp. Focal Shield 4020 | -2/Section 7 | Destroyed S7 Guard 4036 | -2/Section 7 | Spotted S7 Guard 4042 | -2/Section 7 | Destroyed S7 Guard 4365 | -2/Section 7 | Found Spacefold Activator 4463 | -2/Section 7 | Warp Cannon suddenly broke down 4471 | -2/Section 7 | Intercept squad dispatched 4473 | -2/Section 7 | Spotted Tracker 4474 | -2/Section 7 | Spotted Tracker 4478 | -2/Section 7 | Spotted Combat Programmer 4478 | -2/Section 7 | Spotted Combat Programmer 4484 | -2/Section 7 | Found Microwarp Drive 4526 | -2/Section 7 | Core integrity fell below 50% 4534 | -2/Section 7 | Spotted Alpha 7 4534 | -2/Section 7 | Spotted Alpha 7 4537 | -2/Section 7 | Spotted B-99 Colossus 4540 | -2/Section 7 | Spotted Executioner 4540 | -2/Section 7 | Spotted Executioner 4557 | -2/Section 7 | Core integrity fell below 20% 4558 | -2/Section 7 | Spotted Striker 4558 | -2/Section 7 | Spotted Striker 4562 | -2/Section 7 | Spotted Executioner 4562 | -2/Section 7 | Spotted Executioner 4565 | -2/Section 7 | Found Terrabomb 4567 | -2/Section 7 | Found Terrabomb 4574 | -2/Section 7 | Destroyed by Tracker with Linked Autogun Last Messages --------------- 04554_ Adv. Hacking Suite destroyed. 04556_ Microwarped (distance 31). 04557_ Executioner springs to life. 04557_ Penetrated by Slug. 04557_ Slug penetrates Navigation. 04557_ Penetrated by Slug. 04557_ Slug penetrates Navigation. 04557_ Microwarped (distance 13). 04558_ Executioner springs to life. 04558_ Microwarped (distance 14). 04561_ Penetrated by Slug. 04561_ Slug penetrates L2 Fabricator. 04561_ L2 Fabricator damaged. 04562_ Microwarped (distance 51). 04563_ Microwarped (distance 11). 04564_ Spacefolded through Reinforced Barrier. 04565_ Acquired Terrabomb. 04570_ Spacefolded through Sealed Heavy Doors. 04572_ O#4%Q=BZS>IITUCKXZKADHRIA8 04572_ Med. Regenerative Plating destroyed. Map ----- +----------------------------------------------------+ | | | | | | | | | | | | | | | | | | | | | | | | | | | | | ?????????????????????????????????????????????????? | | ?????????????????????????????????????????????????? | | ?????????????????????????????????????????????????? | | ?????????????????????????????????????????????????? | | ?????????????????????????????????????????????????? | | ?????????????????????????????????????????????????? | | ?????????????????????????????????????????????????? | | ?????????????????????????????????????????????????? | | ???###???????????????????????????????????????????? | | ???# ##?##################??????????????????????? | | """"""""""# "#T T#????????]?????????????? | | """""""""# !" @"??!?????????*?????????? | | " ####s #??!???????????????????? | | ####???????????????????? | | ???????" T ????????????? | | ???????"" ??????????? | | ????????"" ????????? | | ?????????"" ????????? | | ??????????"" ?????????? | | ???????????"" """" ?????????? | | ????????????"" "??? ????????? | | ?????????????"" s "??? ?????????? | | ??????????????"" "???? ???????? | | ??????????????? "" " ?????? | | ??????????????""""" | | ??????????????????" ?????? | | ??????????????????" """""""????????? | | ?????????????????? "?????????????? | | ?????????????????? c "?????????????? | | ????????????????? " ???????????? | | ????????????????? """ ?????????? | | ????????????????? " ?????????? | | ????????????????? c ??????????? | | ????????????????? """" " " " ??????????? | | ????????????????? ???? " " " ? ???????????? | | ???c???????????? ???? "?"?"?""" ??????????????? | +----------------------------------------------------+ Best States ------------- Heat Dissipation 149 Energy Generation 66 Energy Capacity 600 Matter Stores 596 Matter Capacity 600 Sight Range 23 Robot Scan Range 16 Terrain Scan Range 18 Terrain Scan Density 1210 Power Amplification 40 Additional Mass Support 20 Armor Coverage 1200 Resistance: KI 30 Core Shielding 30 Propulsion Shielding 90 Phase Shifting 15 Evasion (%) 65 Targeting Accuracy 8 Melee Accuracy 8 Target Analysis 8 Recoil Reduction 6 Kinecelleration 50 Offensive Hacking 24 Defensive Hacking 41 Item Schematics ----------------- None Robot Schematics ------------------ None Fabricated ------------ Nothing Repaired ---------- Nothing Alien Tech Used ----------------- Transdimensional Reconstructor Core Reset Matrix Integrated Dissipator Integrated Mediator Spacefold Activator Microwarp Drive Achievements -------------- None Challenges ------------ None Game ------ Seed SmartbombCatalystPropulsion Manual? 0 Play Time 01:37:48 Cumulative 543.0 hours Start 2025.06.17 @ 08:28:56 End 2025.06.17 @ 10:24:52 Sessions 1 Manual Loads 0 Difficulty Rogue Special Mode None Game No. 651 Rogue 651 Adventurer 0 Explorer 0 Win Type - Total 19 Types 13/0/5/1/0/0/0/0/0/0 Lore% 84 Gallery% 83 Achievement% 82 Wizard Run 0 Options --------- Layout 0 ASCII 0 Keyboard 0 Movement Numpad Keybinds 0 Fullscreen 1 Font 18/SmallcapsGlow Map View 76x50 Zoom Use 0% Tactical HUD 1 Map Filters NONE Filters NONE Steam 1 RUN: e2538137-4e84-4296-bde2-627b90189a7d